bitfinex-derivatives/quotes_ETHF0:USTF0_20250205
["timestamp","ask_amount","ask_price","bid_price","bid_amount"]
[1738787285782,3.83857711,2775.0,2774.7,4.3232]
[1738787286092,3.83857711,2775.0,2774.7,3.2078]
[1738787287987,0.5826,2775.2,2774.7,3.2078]
[1738787290095,3.83857711,2775.0,2774.7,3.2078]
[1738787292496,4.6248,2774.9,2774.2,3.21321067]
[1738787292798,3.83857711,2774.4,2774.2,0.00541067]
[1738787293295,4.41407711,2774.4,2774.2,0.00541067]
[1738787293496,4.99069711,2774.4,2774.2,0.00541067]
[1738787293692,4.41407711,2774.4,2774.2,0.00541067]
[1738787294093,3.83857711,2774.4,2774.2,3.21321067]
[1738787296990,3.83857711,2774.4,2774.2,0.00541067]
[1738787297296,0.5803,2774.3,2774.2,0.00541067]
[1738787297998,3.83857711,2774.4,2774.2,0.00541067]
[1738787299300,4.40367711,2774.7,2774.3,3.2078]
[1738787299599,4.40367711,2774.7,2774.2,0.00541067]
[1738787299600,3.83857711,2775.0,2774.6,3.2078]
[1738787299990,3.83857711,2775.0,2774.7,40.8]
[1738787300198,3.83857711,2775.0,2774.6,3.2078]
[1738787304195,3.83857711,2775.0,2774.9,3.2078]
[1738787304396,1.9811,2775.2,2774.9,3.2078]
[1738787304597,0.5651,2775.2,2774.9,3.2078]
[1738787305302,3.83857711,2775.0,2774.9,3.2078]
[1738787305490,0.57652,2774.9,2774.6,3.2078]
[1738787305695,3.83857711,2774.7,2774.6,3.2078]
[1738787306897,3.83857711,2775.0,2774.6,3.2078]
[1738787308103,5.25457711,2775.3,2774.9,3.2078]
[1738787308598,2.92157205,2775.5,2775.2,3.2078]
[1738787308599,0.00357205,2775.5,2775.2,3.2078]
[1738787309010,0.00357205,2775.5,2775.3,0.5468]
[1738787309191,0.00357205,2775.5,2775.4,0.5525]
[1738787309501,0.00357205,2775.5,2775.4,1.1352]
[1738787309999,0.5478,2776.2,2775.4,1.1352]
[1738787310000,3.83857711,2776.2,2775.4,46.55625545]
[1738787310296,3.83857711,2775.9,2775.7,3.2078]
[1738787312097,3.83857711,2775.9,2775.5,0.00541067]
[1738787312294,3.7459,2776.3,2775.5,0.00541067]
[1738787312295,3.83857711,2775.6,2775.5,0.00541067]
[1738787322208,5.25357711,2776.2,2775.5,0.00541067]
[1738787322405,5.25357711,2776.2,2775.8,3.2078]
[1738787322810,3.062419,2776.0,2775.8,3.2078]
[1738787323809,3.2078,2776.7,2775.8,3.2078]
[1738787323810,3.062419,2776.6,2775.9,4.71247252]
[1738787324002,3.062419,2776.6,2776.3,3.2078]
[1738787324800,3.83633524,2776.6,2776.3,3.2078]
[1738787327812,0.57623,2776.3,2775.6,1.1427]
[1738787328007,3.83633524,2775.9,2775.6,1.1427]
[1738787329315,5.79693524,2776.2,2775.8,3.2078]
[1738787330119,3.83633524,2775.9,2775.8,3.2078]
[1738787331813,3.83633524,2775.9,2775.6,1.1427]
[1738787332908,5.79693524,2776.2,2775.6,1.1427]
[1738787333315,5.79693524,2776.2,2775.8,3.2078]
[1738787336319,7.04413524,2776.5,2776.1,3.2078]
[1738787337015,3.83633524,2776.5,2776.1,3.2078]
[1738787337922,3.83633524,2776.5,2775.8,3.2078]
[1738787338116,3.83633524,2776.5,2775.7,0.5693]
[1738787338117,0.5762,2776.4,2775.7,0.5693]
[1738787339314,3.83633524,2776.5,2775.7,0.5693]
[1738787339514,4.41250524,2776.5,2775.7,0.5693]
[1738787339715,0.5762,2776.4,2775.7,0.5693]
[1738787340717,4.41252524,2776.5,2775.7,0.5693]
[1738787340919,3.83633524,2776.5,2775.7,0.5693]
[1738787341116,0.57619,2776.4,2775.7,0.5693]
[1738787342725,0.57622,2776.3,2775.7,0.5693]
[1738787344323,4.11661462,2776.5,2775.7,0.5693]
[1738787344617,0.57621,2776.4,2775.7,0.5693]
[1738787346822,3.06188825,2776.4,2775.9,3.2078]
[1738787347024,3.35082036,2776.7,2776.2,3.2078]
[1738787347330,0.28893211,2776.7,2776.5,3.2078]
[1738787347530,3.06188825,2777.0,2776.5,3.2078]
[1738787347718,3.06188825,2777.0,2776.3,1.1373]
[1738787347719,3.06188825,2777.3,2776.9,3.2078]
[1738787347923,3.06188825,2777.3,2776.6,3.2078]
[1738787348424,3.06188825,2777.0,2776.6,3.2078]
[1738787351027,3.06188825,2777.0,2776.9,3.2078]
[1738787354130,3.63796825,2777.0,2776.6,3.2078]
[1738787354332,3.06188825,2776.7,2776.6,3.2078]
[1738787355835,3.06188825,2777.0,2776.6,3.2078]
[1738787356630,3.06188825,2777.0,2776.7,0.5322]
[1738787357332,3.06188825,2777.0,2776.9,3.2078]
[1738787358529,3.06188825,2777.3,2776.9,3.2078]
[1738787358736,3.06188825,2777.3,2776.7,0.5322]
[1738787358737,3.06188825,2777.3,2777.2,3.2078]
[1738787358936,3.06188825,2777.3,2777.0,1.1191]
[1738787360534,3.06188825,2777.3,2776.8,0.00541067]
[1738787360840,3.06188825,2777.0,2776.5,3.2078]
[1738787361234,3.06188825,2777.0,2776.8,3.2078]
[1738787361635,3.06188825,2777.0,2776.9,1.1147]
[1738787361936,1.413,2777.4,2776.9,1.1147]
[1738787361937,0.00541067,2777.2,2776.9,1.1147]
[1738787362138,0.00541067,2777.2,2777.1,3.2078]
[1738787364740,2.918,2777.8,2777.1,3.2078]
[1738787364941,3.06188825,2777.9,2777.6,3.2078]
[1738787365743,3.06188825,2777.9,2777.7,0.5591]
[1738787366638,3.06188825,2777.9,2777.6,3.2078]
[1738787366939,0.5727,2777.8,2777.6,3.2078]
[1738787367343,1.123,2777.8,2777.6,3.2078]
[1738787367542,0.57594,2777.6,2776.6,0.00541067]
[1738787367839,3.06188825,2776.7,2776.6,0.00541067]
[1738787370431,3.06188825,2776.1,2775.4,0.5573]
[1738787370637,7.0459965,2776.0,2775.5,3.2078]
[1738787370837,7.0459965,2776.0,2775.6,40.8]
[1738787371038,3.8381965,2776.0,2775.6,40.8]
[1738787371242,3.8381965,2776.0,2775.7,0.5847]
[1738787373346,0.57635,2775.7,2775.5,0.00540083]
[1738787373638,0.57635,2775.7,2775.4,0.5573]
[1738787373639,7.0459965,2775.7,2775.4,0.5573]
[1738787376948,0.57638,2775.5,2775.3,0.00540083]
[1738787377142,7.0459965,2775.4,2775.3,0.00540083]
[1738787377643,8.4579965,2775.4,2775.3,0.00540083]
[1738787378145,5.2501965,2775.4,2775.3,0.00540083]
[1738787380341,9.0344465,2775.4,2775.3,0.00540083]
[1738787380537,8.4579965,2775.4,2775.3,0.00540083]
[1738787380742,14.0344565,2775.4,2775.3,0.00540083]
[1738787380957,8.4579965,2775.4,2774.4,1.104]
[1738787381246,3.8381965,2774.9,2774.4,1.104]
[1738787381448,3.8381965,2774.6,2774.4,1.104]
[1738787381745,7.0459965,2774.6,2774.4,1.104]
[1738787382046,3.8381965,2774.6,2774.4,1.104]
[1738787383646,0.00540083,2774.8,2774.4,1.104]
[1738787386849,0.00540083,2774.8,2772.9,3.2078]
[1738787386850,3.8381965,2774.5,2772.9,3.2078]
[1738787387046,8.84359733,2774.8,2772.9,3.2078]
[1738787387047,7.0459965,2773.6,2773.2,0.5805]
[1738787387449,7.0459965,2774.0,2773.4,3.2078]
[1738787388048,7.0459965,2774.0,2773.4,3.21320083]
[1738787389549,7.0459965,2774.0,2773.4,0.00540083]
[1738787391048,3.8381965,2774.3,2773.9,3.2078]
[1738787391248,3.8381965,2774.3,2774.0,1.6456]
[1738787391656,3.8381965,2774.3,2774.1,40.8]
[1738787393049,0.57668,2774.2,2773.4,0.00540083]
[1738787393250,3.8381965,2773.7,2773.4,0.00540083]
[1738787396957,3.2078,2773.9,2773.4,0.00540083]
[1738787397756,3.8381965,2774.0,2773.4,0.00540083]
[1738787398055,3.8381965,2774.0,2773.5,3.2078]
[1738787398254,3.8381965,2774.0,2773.6,1.1225]
[1738787398449,3.8381965,2774.0,2773.6,1.6555]
[1738787400852,7.0459965,2774.3,2773.8,3.2078]
[1738787401055,0.00540083,2774.8,2774.1,3.2078]
[1738787401252,0.00540083,2774.8,2774.5,3.2078]
[1738787401648,3.8381965,2775.4,2774.6,4.73244745]
[1738787401959,3.8381965,2775.4,2774.2,1.6775]
[1738787401960,7.0459965,2774.8,2774.2,1.6775]
[1738787402157,3.8381965,2774.3,2773.8,3.2078]
[1738787402855,0.00540083,2774.3,2773.8,3.2078]
[1738787403364,3.84359733,2774.3,2773.8,3.2078]
[1738787403658,3.8381965,2774.0,2773.6,0.5417]
[1738787404966,0.00540083,2774.3,2773.8,3.2078]
[1738787405763,0.00540083,2774.3,2773.9,40.8]
[1738787405960,0.00540083,2774.3,2774.1,3.2078]
[1738787406156,0.00540083,2774.3,2774.2,1.112]
[1738787409663,3.2706,2775.3,2774.2,1.112]
[1738787409664,3.8381965,2775.5,2774.2,10.76838584]
[1738787409861,3.8381965,2775.5,2774.8,3.2078]
[1738787410164,3.8381965,2775.8,2774.9,41.9577]
[1738787410362,3.8381965,2775.8,2774.9,46.61408584]
[1738787410572,3.8381965,2775.8,2775.1,3.2078]
[1738787410859,0.00540083,2775.6,2775.1,3.21320083]
[1738787412971,0.00540083,2775.6,2775.2,0.5343]
[1738787414062,3.8381965,2775.5,2775.1,3.21320083]
[1738787414264,3.8381965,2775.2,2775.1,0.00540083]
[1738787415766,3.8381965,2775.2,2774.4,0.5534]
[1738787415767,7.0459965,2775.2,2774.4,0.5534]
[1738787415971,3.2078,2774.7,2774.4,0.5534]
[1738787416270,3.8381965,2774.8,2774.4,0.5534]
[1738787418469,3.276,2775.0,2774.3,0.00540083]
[1738787418470,3.8381965,2774.5,2774.3,0.00540083]
[1738787418669,3.2078,2774.4,2774.3,0.00540083]
[1738787419370,3.85282,2774.4,2774.3,0.00540083]
[1738787419671,3.85282,2774.4,2773.8,40.8]
[1738787419969,3.8381965,2774.0,2773.8,40.8]
[1738787420167,3.8381965,2774.3,2773.8,40.8]
[1738787420769,3.84359733,2774.3,2773.8,40.80540083]
[1738787421963,0.00540083,2774.3,2774.0,3.2078]
[1738787422268,3.8381965,2775.2,2774.1,4.61061561]
[1738787422469,3.8381965,2775.2,2774.4,3.2078]
[1738787422667,3.8381965,2775.2,2774.5,0.5424]
[1738787423475,0.00540083,2775.1,2774.5,0.5424]
[1738787423663,3.8381965,2774.9,2774.2,0.567]
[1738787424178,3.2078,2774.8,2774.2,0.567]
[1738787424372,3.8381965,2774.9,2774.2,0.567]
[1738787424570,3.21320083,2775.1,2774.2,0.567]
[1738787424772,3.21320083,2775.1,2774.4,3.2078]
[1738787425378,3.21320083,2775.1,2774.5,41.3413]
[1738787425573,3.21320083,2775.1,2774.6,0.586]
[1738787429073,0.00540083,2775.1,2774.7,3.2078]
[1738787429273,0.00540083,2775.1,2774.8,0.5688]
[1738787431080,0.00540083,2775.1,2774.7,3.2078]
[1738787431777,3.8381965,2774.9,2774.5,0.5413]
[1738787432073,3.8381965,2774.6,2774.0,0.5701]
[1738787432277,3.8381965,2774.6,2774.0,1.1231]
[1738787433375,3.8381965,2774.9,2774.1,7.92483523]
[1738787433576,3.21320083,2775.1,2774.4,3.2078]
[1738787433777,0.00540083,2775.1,2774.7,3.2078]
[1738787433977,0.00540083,2775.1,2774.8,1.1231]
[1738787434177,0.00540083,2775.1,2775.0,3.2078]
[1738787434377,0.00540083,2775.1,2774.8,5.84879583]
[1738787434582,0.00540083,2775.1,2774.8,1.1231]
[1738787434883,0.00540083,2775.1,2775.0,40.8]
[1738787435075,3.8381965,2775.8,2775.0,40.8]
[1738787435275,3.8381965,2775.8,2775.2,3.2078]
[1738787435483,7.0459965,2775.8,2775.2,3.2078]
[1738787435784,3.8381965,2775.5,2775.2,3.2078]
[1738787438381,3.8381965,2775.5,2775.1,0.00540083]
[1738787438585,3.8381965,2775.2,2775.1,0.00540083]
[1738787442689,4.4146465,2775.2,2775.1,0.00540083]
[1738787443585,4.4146465,2775.2,2774.1,0.5794]
[1738787443586,0.57657,2774.7,2774.1,0.5794]
[1738787443883,1.44119,2775.1,2773.5,2.996]
[1738787443884,7.0459965,2774.2,2773.7,0.5763]
[1738787444096,7.0459965,2774.2,2773.8,40.8]
[1738787444689,3.2078,2774.2,2773.8,40.8]
[1738787445089,3.8381965,2774.5,2773.8,40.8]
[1738787445890,3.8381965,2774.5,2773.8,44.0078]
[1738787446287,3.8381965,2774.8,2774.2,3.2078]
[1738787446482,3.2078,2774.9,2774.3,1.105]
[1738787446684,3.2078,2774.9,2774.4,0.5851]
[1738787449694,3.2078,2774.9,2774.5,40.8]
[1738787449989,3.2078,2774.6,2773.9,3.2078]
[1738787450193,3.8381965,2774.8,2774.0,0.5351]
[1738787450485,3.8381965,2774.8,2774.1,40.8]
[1738787450788,3.8381965,2774.8,2774.2,3.2078]
[1738787451382,3.8381965,2774.5,2774.1,40.8]
[1738787451690,4.4148065,2774.5,2774.1,40.8]
[1738787451885,3.8381965,2774.5,2774.1,40.8]
[1738787452086,3.8381965,2774.5,2774.0,0.5351]
[1738787452087,3.8381965,2774.2,2774.0,0.5351]
[1738787452693,3.8381965,2774.2,2774.0,41.3351]
[1738787453083,3.8381965,2774.2,2773.9,4.62851388]
[1738787453084,7.6226665,2774.2,2773.9,4.62851388]
[1738787453289,0.5767,2774.0,2773.9,4.62851388]
[1738787453488,0.4135,2774.1,2773.8,4.62851388]
[1738787453792,7.0459965,2773.9,2773.8,4.62851388]
[1738787458292,7.0459965,2773.9,2773.2,0.532]
[1738787458293,0.57684,2773.5,2773.2,0.532]
[1738787458493,0.4135,2774.1,2771.8,4.4153565]
[1738787458494,0.57691,2773.1,2772.6,0.5629]
[1738787458798,3.2078,2772.7,2772.6,0.5629]
[1738787459984,3.2078,2772.7,2772.4,0.00540083]
[1738787460190,3.8381965,2772.6,2772.4,0.00540083]
[1738787467902,0.00540083,2772.8,2772.4,0.00540083]
[1738787468708,3.2078,2773.0,2772.5,4.79089638]
[1738787469905,3.21320083,2773.0,2772.5,4.79089638]
[1738787470803,3.8381965,2772.9,2772.5,4.79089638]
[1738787471110,3.8381965,2772.6,2772.4,0.00540083]
[1738787471509,1.41,2772.5,2771.4,3.2078]
[1738787471803,1.41,2772.5,2771.5,0.5673]
[1738787471804,7.0459965,2772.0,2771.5,0.5673]
[1738787472005,7.0459965,2772.0,2771.5,41.9173]
[1738787472405,3.8381965,2772.0,2771.5,41.9173]
[1738787472599,7.0459965,2772.6,2771.7,3.2078]
[1738787472997,3.8381965,2772.3,2771.7,3.2078]
[1738787473199,7.0459965,2772.6,2771.7,3.2078]
[1738787473399,0.00540083,2773.0,2772.5,3.2078]
[1738787473601,0.00540083,2773.0,2772.6,2.266]
[1738787473800,3.8381965,2773.8,2772.6,6.40573061]
[1738787473999,7.0459965,2773.8,2772.8,3.2078]
[1738787474313,7.0459965,2773.8,2772.9,4.71673061]
[1738787474704,3.8381965,2773.5,2772.9,4.71673061]
[1738787475011,3.8381965,2773.5,2773.1,0.00541096]
[1738787476204,0.00541096,2773.6,2773.1,0.00541096]
[1738787476404,3.2078,2774.2,2773.3,7.0459965]
[1738787476702,3.2078,2774.2,2773.4,5.18443863]
[1738787476900,3.2078,2774.2,2773.4,5.73323863]
[1738787476901,3.8381965,2774.1,2773.4,5.73323863]
[1738787477611,0.00541096,2774.0,2773.5,40.8]
[1738787478311,3.8381965,2773.8,2773.5,40.8]
[1738787478511,3.8381965,2773.8,2773.4,1.0943]
[1738787478708,3.2078,2773.9,2773.4,1.0943]
[1738787479402,0.00541096,2774.0,2773.6,3.2078]
[1738787479607,0.00541096,2774.0,2773.7,0.5706]
[1738787479808,0.00541096,2774.0,2773.7,5.16650006]
[1738787480007,3.8381965,2774.4,2773.7,5.16650006]
[1738787481305,0.00539138,2774.3,2773.7,0.5706]
[1738787481611,3.8381965,2774.1,2773.7,0.5706]
[1738787481808,3.21319138,2774.3,2773.7,0.5706]
[1738787482010,0.00539138,2774.3,2773.7,0.5706]
[1738787483308,0.0692,2774.9,2773.7,0.5706]
[1738787483309,3.2078,2774.9,2773.9,3.2078]
[1738787483715,3.2078,2774.9,2774.0,4.77231109]
[1738787483916,3.2078,2774.9,2774.1,0.5837]
[1738787484910,3.2078,2774.9,2774.2,7.80769214]
[1738787485312,3.8381965,2774.7,2774.3,0.56]
[1738787485611,3.2078,2774.6,2774.3,0.56]
[1738787487613,3.2078,2774.6,2774.2,0.5666]
[1738787487818,3.2078,2774.3,2773.6,1.1114]
[1738787488020,3.2078,2774.0,2773.6,1.1114]
[1738787489112,3.2078,2774.3,2773.6,4.3192]
[1738787489315,1.409,2774.6,2773.7,4.65481488]
[1738787490011,3.8381965,2774.4,2773.7,4.65481488]
[1738787490319,3.8381965,2774.4,2773.6,4.3192]
[1738787491619,3.8381965,2774.1,2773.6,0.5283]
[1738787492914,3.8381965,2774.1,2773.4,0.5666]
[1738787492915,3.8381965,2773.8,2773.4,0.5666]
[1738787493818,3.8381965,2773.8,2773.3,40.8]
[1738787494016,3.8381965,2773.5,2773.2,3.7533]
[1738787494213,3.8381965,2773.5,2773.2,0.5455]
[1738787494410,3.8381965,2773.5,2773.2,41.3455]
[1738787496422,3.2078,2773.3,2773.1,0.00541096]
[1738787496621,3.8381965,2773.2,2773.1,0.00541096]
[1738787497021,3.2078,2773.3,2773.1,0.00541096]
[1738787499123,3.2078,2773.6,2773.1,0.00541096]
[1738787500216,4.4150165,2773.5,2773.1,0.00541096]
[1738787500423,3.8381965,2773.2,2773.1,0.00541096]
[1738787500717,4.4150765,2773.2,2773.1,0.00541096]
[1738787500918,0.57699,2772.7,2772.1,40.8]
[1738787501122,3.2078,2772.6,2772.0,0.5525]
[1738787501315,3.2078,2772.6,2771.7,0.5846]
[1738787501523,3.2078,2772.5,2771.7,0.5846]
[1738787501731,3.2078,2772.5,2771.8,40.8]
[1738787502030,0.00541096,2772.4,2771.8,40.80541096]
[1738787502423,0.00541096,2772.4,2771.8,44.01321096]
[1738787503529,0.00541096,2772.4,2771.8,40.80541096]
[1738787504528,3.2078,2772.2,2771.8,0.00541096]
[1738787504927,0.00541096,2772.4,2771.8,0.00541096]
[1738787505127,0.00541096,2772.4,2771.8,3.21321096]
[1738787505925,0.00541096,2772.4,2772.1,3.2078]
[1738787506128,5.2471965,2773.3,2772.1,3.2078]
[1738787506321,3.8381965,2773.3,2772.2,4.72600316]
[1738787506526,3.8381965,2773.3,2772.4,3.2078]
[1738787507330,3.8381965,2773.3,2772.5,7.86376758]
[1738787507535,3.2078,2773.4,2772.8,3.2078]
[1738787509229,3.8381965,2773.3,2772.8,3.2078]
[1738787509532,3.8381965,2773.0,2772.5,3.2078]
[1738787511028,3.2078,2773.1,2772.5,3.2078]
[1738787512034,3.8381965,2773.3,2772.5,3.2078]
[1738787513332,0.57679,2773.7,2772.5,3.2078]
[1738787513333,3.8381965,2773.6,2772.8,3.2078]
[1738787513534,3.2078,2773.7,2772.8,3.2078]
[1738787513740,3.2078,2773.7,2772.9,40.8]
[1738787514036,7.0459965,2773.3,2773.0,0.5572]
[1738787515431,7.6228565,2773.3,2772.5,3.7934]
[1738787515637,7.0459965,2773.0,2772.5,4.3506]
[1738787516927,7.0459965,2772.6,2772.5,0.5572]
[1738787517133,7.0459965,2772.6,2771.9,0.5488]
[1738787517437,3.2078,2772.3,2772.0,41.3851]
[1738787518339,3.2078,2772.3,2772.0,0.5851]
[1738787519536,7.0459965,2772.3,2772.0,0.5851]
[1738787520335,3.8381965,2772.3,2772.0,0.5851]
[1738787521037,0.4305,2773.2,2772.0,0.5851]
[1738787521038,7.0459965,2773.2,2772.2,3.2078]
[1738787521242,7.0459965,2773.2,2772.5,3.2078]
[1738787521443,7.0459965,2773.2,2772.6,1.1176]
[1738787521741,7.0459965,2773.2,2772.7,41.3358]
[1738787522242,3.78477,2772.8,2771.8,0.00541096]
[1738787522439,3.8381965,2772.6,2772.2,0.535]
[1738787522638,3.2078,2772.5,2772.2,0.535]
[1738787524537,3.2078,2772.5,2771.8,0.57081096]
[1738787524538,3.8381965,2772.3,2771.8,0.57081096]
[1738787524740,3.8381965,2772.3,2771.8,1.10581096]
[1738787525340,3.8381965,2772.0,2771.8,1.10581096]
[1738787525638,0.57715,2771.9,2771.8,1.10581096]
[1738787525943,1.409,2771.9,2771.8,1.10581096]
[1738787526139,0.57722,2771.6,2771.3,0.5853]
[1738787526343,7.6232465,2771.4,2770.3,3.2078]
[1738787526543,7.6232465,2771.4,2770.4,40.8]
[1738787526544,3.2078,2770.9,2770.4,40.8]
[1738787527140,3.8381965,2770.7,2770.4,0.00541096]
[1738787527447,3.2078,2770.6,2770.4,0.00541096]
[1738787530339,0.58278096,2770.9,2770.4,0.00541096]
[1738787530340,0.00541096,2770.9,2770.4,0.00541096]
[1738787532446,3.2078,2771.6,2770.7,7.0459965]
[1738787532647,1.409,2772.1,2771.1,3.2078]
[1738787532852,1.409,2772.1,2771.4,3.2078]
[1738787532853,3.8381965,2772.0,2771.4,3.2078]
[1738787533051,7.0459965,2772.0,2771.4,3.2078]
[1738787533248,7.0459965,2772.0,2771.5,40.8]
[1738787533554,3.2078,2771.9,2770.9,3.2078]
[1738787533753,3.2078,2771.9,2770.4,4.70363907]
[1738787533754,3.2078,2771.9,2771.2,3.2078]
[1738787534048,3.2078,2771.9,2771.3,40.8]
[1738787536051,3.2078,2772.2,2771.3,40.8]
[1738787536250,3.2078,2772.2,2771.5,3.2078]
[1738787537651,3.8381965,2772.0,2771.5,3.2078]
[1738787537851,3.2078,2771.6,2770.9,3.2078]
[1738787539349,3.2078,2771.2,2770.5,44.0078]
[1738787539950,3.8381965,2771.4,2770.5,44.0078]
[1738787540150,3.2078,2771.2,2770.5,44.0078]
[1738787540353,3.8381965,2771.1,2770.5,44.0078]
[1738787540656,3.8381965,2771.1,2770.5,3.2078]
[1738787540956,3.7851,2771.2,2770.4,0.00541096]
[1738787540957,3.2078,2770.6,2770.4,0.00541096]
[1738787541145,3.8381965,2770.5,2770.4,0.00541096]
[1738787542355,8.8381965,2770.5,2770.4,0.00541096]
[1738787542552,8.8381965,2770.5,2769.3,3.2078]
[1738787542755,3.8381965,2769.6,2768.7,3.2078]
[1738787542952,3.2078,2769.5,2768.7,3.2078]
[1738787543253,3.2078,2769.5,2768.8,40.8]
[1738787543648,3.8381965,2769.0,2768.4,3.2078]
[1738787543853,3.8381965,2769.0,2768.9,0.00541096]
[1738787544054,3.8381965,2769.0,2767.8,11.20931756]
[1738787544055,0.57779,2768.9,2767.8,11.20931756]
[1738787544255,3.2078,2768.1,2767.8,11.20931756]
[1738787544847,1.409,2768.3,2767.8,11.20931756]
[1738787545354,1.409,2768.3,2767.8,11.21472852]
[1738787545955,1.409,2768.3,2767.8,0.00541096]
[1738787546153,3.2078,2768.4,2767.8,0.00541096]
[1738787546348,1.75207388,3926.1,2768.2,7.0459965]
[1738787546349,3.21321096,2769.4,2768.2,7.0459965]
[1738787546548,7.05140746,2769.4,2769.2,40.8]
[1738787547052,0.57775,2769.0,2767.8,0.00541096]
[1738787547359,3.2078,2768.3,2767.8,0.00541096]
[1738787547649,7.0459965,2768.3,2767.8,0.00541096]
[1738787547854,8.4549965,2768.3,2767.8,0.00541096]
[1738787549053,3.2078,2768.0,2767.8,0.00541096]
[1738787550649,7.0459965,2768.0,2767.8,0.00541096]
[1738787550860,3.2078,2768.0,2767.8,0.00541096]
[1738787557458,0.57798,2767.9,2767.8,0.00541096]
[1738787557957,7.0459965,2768.0,2767.8,0.00541096]
[1738787558157,7.6239665,2768.0,2767.8,0.00541096]
[1738787558661,1.41,2767.9,2767.8,0.00541096]
[1738787559055,3.2078,2768.0,2767.8,0.00541096]
[1738787559660,3.2078,2768.5,2767.8,0.00541096]
[1738787561163,1.6591,2768.4,2767.8,0.00541096]
[1738787561855,1.6591,2768.4,2768.0,3.2078]
[1738787562866,1.6591,2768.4,2767.8,0.00541096]
[1738787563063,3.78578,2767.9,2767.8,0.00541096]
[1738787563258,5.19578,2767.9,2767.8,0.00541096]
[1738787564066,4.6178,2767.9,2767.8,0.00541096]
[1738787565065,3.2078,2767.9,2767.8,0.00541096]
[1738787565370,7.0459965,2768.3,2767.8,0.00541096]
[1738787565758,1.6591,2768.4,2767.8,40.80541096]
[1738787566466,3.2078,2768.0,2767.8,0.00541096]
[1738787566974,7.0459965,2768.0,2767.8,0.00541096]
[1738787567468,3.2078,2768.0,2767.8,0.00541096]
[1738787570469,3.2078,2768.0,2766.7,3.2078]
[1738787570470,12.0459965,2768.0,2766.7,3.2078]
[1738787570674,7.0459965,2767.7,2766.7,3.2078]
[1738787571167,7.0459965,2767.7,2766.8,40.8]
[1738787571665,3.2078,2767.7,2766.8,40.8]
[1738787571870,0.00541096,2767.5,2767.0,3.21321096]
[1738787572970,0.00541096,2767.5,2767.1,4.73502685]
[1738787573760,0.00541096,2767.5,2767.0,3.21321096]
[1738787574366,0.00541096,2767.5,2767.3,3.2078]
[1738787574566,0.00541096,2767.5,2767.3,7.0459965]
[1738787574872,0.00541096,2767.5,2767.4,4.74719713]
[1738787575266,0.00541096,2767.5,2767.4,10.99559457]
[1738787575465,0.00541096,2767.5,2767.4,51.79559457]
[1738787576169,0.00541096,2767.5,2767.4,52.37367457]
[1738787576868,4.8669,2768.4,2767.4,51.79559457]
[1738787576869,1.6591,2768.4,2767.4,51.79559457]
[1738787577174,1.6591,2768.4,2768.1,3.2078]
[1738787578468,1.1227,2768.4,2768.1,3.2078]
[1738787578773,1.1227,2768.4,2768.2,4.62597607]
[1738787580274,1.1227,2768.4,2768.1,3.2078]
[1738787580869,3.8381965,2768.3,2767.5,3.2078]
[1738787581368,3.2078,2768.0,2767.5,3.2078]
[1738787581568,3.8381965,2768.3,2767.5,3.2078]
[1738787581968,4.4160965,2768.3,2767.5,3.2078]
[1738787582169,3.8381965,2768.3,2767.5,3.2078]
[1738787582869,4.3305,2768.4,2767.5,3.2078]
[1738787583075,4.3305,2768.4,2767.6,4.73293669]
[1738787583967,0.5807,2768.4,2767.9,3.2078]
[1738787584371,0.00541096,2768.5,2767.9,3.2078]
[1738787584874,0.00541096,2768.5,2767.6,3.2078]
[1738787585280,0.00541096,2768.5,2767.7,4.72606371]
[1738787586672,0.00541096,2768.5,2767.9,3.2078]
[1738787587378,0.00541096,2768.5,2768.0,40.8]
[1738787587679,0.00541096,2768.5,2768.3,3.2078]
[1738787588076,0.00541096,2768.5,2768.4,1.0923]
[1738787588272,0.00541096,2768.5,2768.4,5.78345419]
[1738787588774,3.2078,2769.4,2768.4,10.78345419]
[1738787588974,3.2078,2769.4,2768.4,5.78345419]
[1738787589172,3.2078,2769.4,2768.5,40.8]
[1738787589578,3.2078,2769.4,2768.8,3.2078]
[1738787590080,3.2078,2769.1,2768.8,0.00541096]
[1738787590667,4.4159665,2768.9,2768.8,0.00541096]
[1738787590873,3.8381965,2768.9,2767.6,3.2078]
[1738787591076,3.2078,2768.1,2767.6,3.2078]
[1738787591978,3.2078,2768.6,2767.7,4.65507146]
[1738787592274,3.2078,2768.5,2767.6,3.21321096]
[1738787592874,1.9448,2769.0,2767.6,0.00541096]
[1738787592875,3.2078,2768.2,2767.6,0.00541096]
[1738787593082,3.2078,2767.9,2767.6,0.00541096]
[1738787593578,3.8381965,2767.8,2767.6,0.00541096]
[1738787594080,3.2078,2767.9,2767.6,0.00541096]
[1738787594877,3.8381965,2767.8,2767.6,0.00541096]
[1738787595274,0.5805,2767.7,2767.6,0.00541096]
[1738787596481,0.5805,2767.7,2766.7,3.2078]
[1738787596482,5.5805,2767.7,2766.7,3.2078]
[1738787596777,5.5805,2767.7,2765.9,3.8381965]
[1738787596778,3.2078,2767.1,2766.4,3.2078]
[1738787597082,3.2078,2767.1,2766.5,40.8]
[1738787597580,3.2078,2767.1,2766.5,40.80542143]
[1738787598577,1.9905,2767.7,2766.5,40.80542143]
[1738787598578,3.8381965,2766.7,2766.5,0.00542143]
[1738787598878,1.41,2766.6,2765.4,12.16468817]
[1738787599074,3.2078,2766.0,2765.4,8.40698817]
[1738787599274,7.0459965,2765.5,2764.7,8.40698817]
[1738787599476,1.41,2765.4,2764.7,8.40698817]
[1738787599671,7.0459965,2765.2,2764.8,40.8]
[1738787599875,7.0459965,2765.2,2764.8,0.00542143]
[1738787600080,7.0459965,2764.9,2764.5,11.20931756]
[1738787600274,3.2078,2764.6,2764.5,11.20931756]
[1738787600978,3.2078,2765.2,2764.5,11.20931756]
[1738787601174,3.8381965,2765.2,2764.5,11.20931756]
[1738787601379,7.0459965,2765.2,2764.5,11.20931756]
[1738787602380,3.2078,2765.2,2764.5,11.20931756]
[1738787602582,7.0459965,2765.2,2764.5,11.20931756]
[1738787602781,3.2078,2765.2,2764.5,11.20931756]
[1738787603176,3.2078,2765.2,2764.3,3.21322143]